Cogmind - Beta 14 @@@ ROGUE MODE // 2024.11.25 @ 22:41:49 Player: mehbruh Result: Self-destructed Performance ------------- Evolutions (2) 1000 Regions Visited (5) 1000 Robots Destroyed (41) 205 Value Destroyed (688) 688 Prototype IDs (26) 520 Alien Tech Used (0) 0 Bonus (307) 307 TOTAL SCORE: 3720 Bonus ------- Follower Combat Kills 7 Aligned with FarCom 300 Cogmind --------- Core Integrity 550/550 Matter 276/300 Energy 240/240 System Corruption 3% Temperature Cool (0) Movement Treading (160) Location -8/Materials Parts ------- > --- POWER (1) -------- Nuclear Core > --- PROPULSION (3) --- Light Treads Light Treads Light Treads > --- UTILITY (4) ------ Heat Sink Heat Sink Large Storage Unit Hardened Medium Armor Plating > --- WEAPON (3) ------- Medium Laser Medium Laser Assault Rifle > --- INVENTORY (15) --- Ion Engine Light Treads Light Treads Advanced Treads Wheel Large Storage Unit Hardened Medium Armor Plating Skeleton Box Improved Trap Extractor (3/6 Explosive) Spread Laser Field Laser Beam Cannon Heavy Particle Cannon Minigun Heavy Flail Peak State ------------ > --- POWER ------------ Nuclear Core > --- PROPULSION ------- Light Treads Light Treads Light Treads > --- UTILITY ---------- Heat Sink Heat Sink Large Storage Unit Hardened Medium Armor Plating > --- WEAPON ----------- Medium Laser Medium Laser Heavy Particle Gun > --- INVENTORY -------- Ion Engine Wheel Large Storage Unit Hardened Medium Armor Plating Shield Generator Skeleton Box Improved Trap Extractor Medium Laser Field Laser Beam Cannon Light Assault Rifle Minigun [Rating: 20] Favorites ----------- Power Nuclear Core Engine Ion Engine Power Core Nuclear Core Propulsion Light Treads Treads Light Treads Wheel Wheel Utility Heat Sink Device Heat Sink Storage Large Storage Unit Protection Hardened Medium Armor Plating Weapon Medium Laser Energy Gun Medium Laser Ballistic Gun Assault Rifle Build | -11 -10 -10 -10 -9 -8 ------- Run | Yrd Mat Min Exi Min Mat Slots Evolved 4 | . . . . . 4 Power . | . . . . . . Propulsion 1 | . . . . . 1 Utility 2 | . . . . . 2 Weapon 1 | . . . . . 1 Parts Attached 35 | 6 8 3 . 7 11 Power 2 | 1 . 1 . . . Engine 1 | 1 . . . . . Core 1 | . . 1 . . . Reactor . | . . . . . . Propulsion 9 | 2 2 . . . 5 Treads 8 | 2 2 . . . 4 Leg . | . . . . . . Wheel 1 | . . . . . 1 Hover . | . . . . . . Flight . | . . . . . . Utility 15 | 1 5 2 . 5 2 Device 8 | . 2 2 . 3 1 Storage 4 | 1 3 . . . . Processor . | . . . . . . Hackware . | . . . . . . Protection 3 | . . . . 2 1 Artifact . | . . . . . . Weapon 9 | 2 1 . . 2 4 Energy Gun 6 | 1 1 . . 1 3 Energy Cannon . | . . . . . . Ballistic Gun 3 | 1 . . . 1 1 Ballistic Cannon . | . . . . . . Launcher . | . . . . . . Special Weapon . | . . . . . . Impact Weapon . | . . . . . . Slashing Weapon . | . . . . . . Piercing Weapon . | . . . . . . Special Melee Weapon . | . . . . . . Unidentified Prototypes 1 | . . . . . 1 Parts Lost 2 | . 1 . . 1 . Power . | . . . . . . Propulsion . | . . . . . . Utility 2 | . 1 . . 1 . Weapon . | . . . . . . Highest Loss Streak 1 | . 1 . . 1 . To Critical Strikes . | . . . . . . Average Slot Usage (%) 99 | . 97 100 100 99 99 Engine 6 | . 14 8 . . . Core 6 | . . 5 14 14 9 Treads 27 | . 27 28 28 28 26 Device 14 | . 12 14 14 11 18 Storage 12 | . 14 14 14 14 9 Protection 2 | . . . . 1 9 Energy Gun 14 | . 13 14 14 12 18 Ballistic Gun 13 | . 14 14 14 15 9 Peak Build Rating 20 | 6 8 13 11 14 20 Average Rating 10 | 4 7 8 10 11 17 On Entrance 7 | . 6 7 10 11 11 Naked Turns . | . . . . . . Heaviest Build 43 | 14 30 32 32 38 43 Greatest Support 60 | 40 40 40 40 40 60 Greatest Overweight (x) 4 | . . . . . 4 Average Overweight (x) . | . . . . . . Largest Inventory Capacity 15 | 8 15 15 15 15 15 Average Capacity 14 | 6 14 15 15 15 15 Most Carried 15 | 5 10 15 12 15 15 Average Carried 11 | 2 7 11 11 12 13 Final Capacity 15 | 8 15 15 15 15 15 Final Carried 15 | 3 9 11 12 13 15 Class Distribution -------------------- 79% | Mutant 20% | Skirmisher Dominant Class ---------------- Mutant | -10/Materials Mutant | -10/Mines Mutant | -10/Exiles Mutant | -9/Mines Skirmisher | -8/Materials Resources | -11 -10 -10 -10 -9 -8 ----------- Run | Yrd Mat Min Exi Min Mat Matter Collected 820 | 223 157 132 . 166 142 Remotely . | . . . . . . Salvage Created 1080 | . 415 101 . 310 254 Parts 82 | . 24 13 . 21 24 Haulers Intercepted 3 | . 2 . . . 1 Recyclers Shooed 1 | . . 1 . . . Parts Field Recycled . | . . . . . . Retrieved Matter . | . . . . . . Parts Self-Destructed . | . . . . . . Prevented . | . . . . . . Kills | -11 -10 -10 -10 -9 -8 ------- Run | Yrd Mat Min Exi Min Mat Combat Hostiles Destroyed 36 | . 13 5 . 10 8 Guns 36 | . 13 5 . 10 8 Classes Destroyed 7 | . 3 1 . 2 1 Worker 2 | . . 1 . . 1 Tunneler 1 | . . . . 1 . Hauler 3 | . 2 . . . 1 Swarmer 23 | . 9 5 . 3 6 Grunt 10 | . 4 . . 6 . Sentry 2 | . . . . . 2 Assembled 1 | . . . . 1 . Best Kill Streak 8 | . 3 4 . 7 8 Combat Bots Only 6 | . 3 3 . 6 5 Max Kills in Single Turn 2 | . 2 2 . 1 2 Gunslinging 1 | . 1 1 . . 1 Exploded . | . . . . . . Melee . | . . . . . . Uniques/NPCs Destroyed . | . . . . . . Combat | -11 -10 -10 -10 -9 -8 -------- Run | Yrd Mat Min Exi Min Mat Hostile Shots Fired 146 | . 62 12 . 61 11 Missed 34 | . 15 1 . 14 4 Damage Taken 1082 | . 418 80 . 512 72 Core 175 | . 87 9 . 79 . Absorbed by Shields . | . . . . . . Regen/Repaired (Parts) 435 | . 227 . . . 208 Core Remaining (%) 65 | 100 . . . 30 . Volleys Fired 93 | . 44 9 . 27 13 Largest 3 | . 2 2 . 2 3 Hottest 120 | . 70 70 . 70 120 Shots Fired 199 | . 88 18 . 54 39 Gun 199 | . 88 18 . 54 39 Cannon . | . . . . . . Launcher . | . . . . . . Special . | . . . . . . Kinetic 108 | . 44 9 . 42 13 Thermal 91 | . 44 9 . 12 26 Explosive . | . . . . . . Electromagnetic . | . . . . . . Robot Hit Streak 12 | . 6 2 . 6 12 Robot Miss Streak 8 | . 8 4 . 2 2 Penetration Max . | . . . . . . Secondary Targets 7 | . 2 1 . 2 2 Max Gunslinging Chain 1 | . 1 1 . 1 1 Shots Hit Robots 109 | . 44 6 . 34 25 Core Hits 57 | . 21 7 . 16 13 Critical Kills . | . . . . . . Critical Parts Destroyed . | . . . . . . Critical Strikes 4 | . 2 . . . 2 Burn 4 | . 2 . . . 2 Melee Attacks . | . . . . . . Impact . | . . . . . . Slashing . | . . . . . . Piercing . | . . . . . . Sneak Attacks . | . . . . . . Combat Hostiles . | . . . . . . Follow-up Attacks . | . . . . . . Damage Inflicted 1458 | . 602 97 . 420 339 Guns 1441 | . 597 91 . 420 333 Cannons . | . . . . . . Explosions . | . . . . . . Melee . | . . . . . . Ramming 17 | . 5 6 . . 6 Kinetic 840 | . 302 51 . 339 148 Thermal 601 | . 295 40 . 81 185 Explosive . | . . . . . . Electromagnetic . | . . . . . . Impact . | . . . . . . Slashing . | . . . . . . Piercing . | . . . . . . Highest Corruption 3 | . . . . . 3 Average Corruption 3 | . . . . . 3 Corruption Purged . | . . . . . . Corruption Blocked . | . . . . . . Effects 15 | . . . . . 15 Message Errors 8 | . . . . . 8 Matter Fused 2 | . . . . . 2 Heat Flow Errors 1 | . . . . . 1 Data Loss (major) 3 | . . . . . 3 Alerts 1 | . . . . . 1 Overload Shots . | . . . . . . Overflow Damage . | . . . . . . Projectiles . | . . . . . . Explosions . | . . . . . . Melee . | . . . . . . Knockbacks 1 | . 1 . . . . Impact 1 | . 1 . . . . Kinetic . | . . . . . . Secondary . | . . . . . . Self-Inflicted Damage . | . . . . . . Shots . | . . . . . . Rammed 5 | . 3 2 . . . Targets Rammed 6 | . 3 2 . . 1 Kicked . | . . . . . . Crushed 1 | . . . . . 1 Highest Temperature 323 | . 39 . . 323 161 Average Temperature 91 | . 15 . . 153 13 Received Heat Transfer 452 | . 72 . . 380 . Effects 1 | . . . . 1 . Shutdowns 1 | . . . . 1 . Siege Activations . | . . . . . . Robots Corrupted . | . . . . . . Combat Hostiles . | . . . . . . Parts Fried . | . . . . . . Impact Corruptions . | . . . . . . Robots Melted . | . . . . . . Combat Hostiles . | . . . . . . Parts Melted 6 | . 4 . . . 2 Heat Transferred 1998 | . 999 111 . 222 666 Parts Sabotaged . | . . . . . . Parts Stolen . | . . . . . . Parts Stripped . | . . . . . . Power Chain Reactions . | . . . . . . Alert | -11 -10 -10 -10 -9 -8 ------- Run | Yrd Mat Min Exi Min Mat Peak Influence 293 | . 293 130 . 161 232 Initial 69 | . . 69 . . 62 Average 87 | . 120 38 . 73 122 Maximum Alert Level 1 | . 1 . . . 1 Low Security (%) 95 | 100 91 100 . 100 92 Level 1 4 | . 8 . . . 8 Level 2 . | . . . . . . Level 3 . | . . . . . . Level 4 . | . . . . . . Level 5 . | . . . . . . High Security . | . . . . . . Max Security . | . . . . . . Squads Dispatched 2 | . 1 . . . 1 Investigation 1 | . 1 . . . . Extermination . | . . . . . . Reinforcement 1 | . . . . . 1 Assault . | . . . . . . Garrison . | . . . . . . Intercept . | . . . . . . Searches Triggered . | . . . . . . Construction Impeded . | . . . . . . Haulers Reinforced . | . . . . . . Active Scanning Responses . | . . . . . . Cargo Convoy Interrupts . | . . . . . . Stealth | -11 -10 -10 -10 -9 -8 --------- Run | Yrd Mat Min Exi Min Mat Distress Signals 6 | . 3 . . 1 2 Communications Jammed . | . . . . . . Distress Signals . | . . . . . . Times Spotted 55 | . 25 8 . 12 10 Peak Tracking Total 5 | . 5 3 . 4 5 Tactical Retreats 4 | . 3 . . 1 . Traps | -11 -10 -10 -10 -9 -8 ------- Run | Yrd Mat Min Exi Min Mat Traps Triggered 1 | . 1 . . . . Indirectly . | . . . . . . Trap Hack Attempts . | . . . . . . Triggered . | . . . . . . Disarmed 6 | . 6 . . . . Reprogrammed . | . . . . . . Reused 1 | . . . . 1 . Traps Extracted 1 | . . . . 1 . Installed 2 | . . . . 2 . Triggered 1 | . . . . 1 . Most Traps Carried 4 | . . 4 4 4 3 Machines | -11 -10 -10 -10 -9 -8 ---------- Run | Yrd Mat Min Exi Min Mat Machines Disabled . | . . . . . . Max in Single Turn . | . . . . . . Machines Repaired . | . . . . . . Machines Dismantled . | . . . . . . Machines Sabotaged . | . . . . . . Overloaded Fab Kills . | . . . . . . Hacking | -11 -10 -10 -10 -9 -8 --------- Run | Yrd Mat Min Exi Min Mat Machines Accessed 15 | . 9 2 1 . 3 Terminals 10 | . 8 . . . 2 Fabricators . | . . . . . . Repair Stations 2 | . 1 . . . 1 Recycling Units . | . . . . . . Scanalyzers . | . . . . . . Garrison Access . | . . . . . . Total Hacks 61 | . 41 2 1 . 17 Successful 40 | . 25 2 1 . 12 Failed 19 | . 15 . . . 4 Catastrophic 1 | . 1 . . . . Database Lockouts 2 | . 1 . . . 1 Manual 36 | . 24 . 1 . 11 Terminals 47 | . 34 . . . 13 Fabricators . | . . . . . . Repair Stations 11 | . 7 . . . 4 Recycling Units . | . . . . . . Scanalyzers . | . . . . . . Garrison Access . | . . . . . . Terminal Hacks 18 | . 11 2 1 . 4 Robot Analysis 7 | . 3 . . . 4 Prototype ID Bank 1 | . 1 . . . . Open Door 2 | . . 2 . . . Locate Traps 4 | . 4 . . . . Disarm Traps 1 | . 1 . . . . Surveillance Status 1 | . 1 . . . . Zone Layout 1 | . 1 . . . . Derelict Proto ID Bank 1 | . . . 1 . . Fabricator Hacks . | . . . . . . Repair Station Hacks 10 | . 6 . . . 4 Scan Component 5 | . 3 . . . 2 Repair 5 | . 3 . . . 2 Recycling Unit Hacks . | . . . . . . Scanalyzer . | . . . . . . Garrison Access Hacks . | . . . . . . Unauthorized Hacks 12 | . 8 . . . 4 Terminals 12 | . 8 . . . 4 Botnet 5 | . 3 . . . 2 Skim 7 | . 5 . . . 2 Fabricators . | . . . . . . Repair Stations . | . . . . . . Recycling Units . | . . . . . . Scanalyzers . | . . . . . . Garrison Access . | . . . . . . Data Cores Recovered . | . . . . . . Used . | . . . . . . Hacking Detections 11 | . 8 . . . 3 Full Trace Events . | . . . . . . Feedback Events . | . . . . . . Feedback Blocked . | . . . . . . Robot Schematics Acquired . | . . . . . . Robots Built . | . . . . . . Authchips . | . . . . . . Time . | . . . . . . Total Robot Build Rating . | . . . . . . Part Schematics Acquired . | . . . . . . Parts Built . | . . . . . . Authchips . | . . . . . . Time . | . . . . . . Total Part Build Rating . | . . . . . . Parts Repaired 5 | . 3 . . . 2 Time 130 | . 78 . . . 52 Parts Recycled . | . . . . . . Recycled Matter . | . . . . . . Retrieved Matter . | . . . . . . Retrieved Components . | . . . . . . Parts Scanalyzed . | . . . . . . Part Schematics Acquired . | . . . . . . Parts Damaged . | . . . . . . Bothacking | -11 -10 -10 -10 -9 -8 ------------ Run | Yrd Mat Min Exi Min Mat Used RIF Installer . | . . . . . . Robots Hacked . | . . . . . . Non-combat . | . . . . . . Combat . | . . . . . . Robot Hacks Applied . | . . . . . . Relay Couplers Released . | . . . . . . Fabnet Peak Effective % . | . . . . . . Robots Rewired . | . . . . . . Allies Hacked . | . . . . . . Hacks Repelled . | . . . . . . Allies | -11 -10 -10 -10 -9 -8 -------- Run | Yrd Mat Min Exi Min Mat Total Allies 2 | . . . . 2 . Largest Group 2 | . . . . 2 . Highest-Rated Group 45 | . . . . 45 . Highest-Rated Ally 31 | . . . . 31 . Total Orders . | . . . . . . Ally Attacks 4 | . . . . 4 . Total Damage 43 | . . . . 43 . Kills 1 | . . . . 1 . Allies Corrupted . | . . . . . . Allies Melted . | . . . . . . Intel | -11 -10 -10 -10 -9 -8 ------- Run | Yrd Mat Min Exi Min Mat Robot Analysis Total 7 | . 3 . . . 4 Derelict Logs Recovered 3 | . . 3 . . . Drone Launches . | . . . . . . Drone Recoveries . | . . . . . . Exploration | -11 -10 -10 -10 -9 -8 ------------- Run | Yrd Mat Min Exi Min Mat Turns Passed 3784 | 49 1032 950 334 644 775 Spaces Moved 1723 | 35 482 526 209 200 271 Core 18 | 18 . . . . . Treads 1699 | 17 482 526 209 200 265 Legs . | . . . . . . Wheels 6 | . . . . . 6 Hover . | . . . . . . Flight . | . . . . . . Fastest Speed 50 | 50 160 160 160 160 140 Average Speed 158 | 103 160 160 160 160 159 Slowest Speed 160 | 160 160 160 160 160 160 Overloaded Moves . | . . . . . . Propulsion Burnouts . | . . . . . . Robots Hopped . | . . . . . . Cave-ins Triggered . | . . . . . . Exploration Rate (%) 52 | 4 88 93 60 38 29 Regions Visited 5 Branch Regions 3 Pre-discovered Areas 1 | . . 1 . . . Known Exits Taken . | . . . . . . Unknown Exits Taken 5 | 1 1 1 1 1 . Scrap Searched 1 | . . 1 . . . Spaces Dug . | . . . . . . Terrain Destroyed . | . . . . . . Melee . | . . . . . . Projectile . | . . . . . . AOE . | . . . . . . Terrain Rammed . | . . . . . . Walls Destroyed . | . . . . . . Machines Disabled . | . . . . . . Actions | -11 -10 -10 -10 -9 -8 --------- Run | Yrd Mat Min Exi Min Mat Total 2581 | 47 650 618 209 472 585 Wait 675 | . 107 65 . 230 273 Move 1718 | 34 481 525 208 199 271 Hop . | . . . . . . Pick Up 34 | 7 6 7 1 4 9 Fast Attach 10 | 2 4 . . . 4 Attach 14 | 4 1 1 . 2 6 Detach 3 | . . 1 . 1 1 Swap 11 | . 3 2 . 5 1 Drop 15 | . 1 6 . 2 6 Fire 93 | . 44 9 . 27 13 Melee . | . . . . . . Ram . | . . . . . . Kick . | . . . . . . Crush 6 | . 3 2 . . 1 Escape Stasis . | . . . . . . Rewire . | . . . . . . Trap 2 | . . . . 2 . Miscellaneous . | . . . . . . Route ------- -11/Scrapyard -10/Materials (discovered 5 exits: *Mat x3 / *Min / Sub) -10/Mines (discovered 3 exits: *Mat x2 / *Exi) -10/Exiles -9/Mines -8/Materials (discovered 2 exits: Fac x2) History --------- Turn | Location | Event 6 | -11/Scrapyard | Discovered new exit (range 16) 50 | -11/Scrapyard | Entered Materials 98 | -10/Materials | Discovered new exit (range 7) 185 | -10/Materials | Discovered new exit (range 14) 311 | -10/Materials | Build established: Mutant 443 | -10/Materials | Central database locked down 501 | -10/Materials | Discovered new exit (range 16) 679 | -10/Materials | Identified exit to Materials 806 | -10/Materials | Learned 4 Subcaves zone layouts 865 | -10/Materials | Repaired Lgt. Treads 893 | -10/Materials | Repaired Lgt. Treads 894 | -10/Materials | Learned location of 1 exit from Storage 920 | -10/Materials | Repaired Med. Laser 924 | -10/Materials | Identified exit to Subcaves 962 | -10/Materials | Learned 2 Materials zone layouts 1010 | -10/Materials | Learned 4 Recycling zone layouts 1066 | -10/Materials | Learned location of 2 exits from Materials 1082 | -10/Materials | Entered Mines 1099 | -10/Mines | Met a Derelict bent on vengeance 1146 | -10/Mines | Discovered exit to Materials (range 13) 1175 | -10/Mines | Found the Drone Emporium 1194 | -10/Mines | Found a hidden stash of uninstalled traps 1244 | -10/Mines | Discovered exit to Materials (range 13) 1284 | -10/Mines | Learned Materials terminal intel 1300 | -10/Mines | Learned Materials emergency access door positions 1371 | -10/Mines | Found a damaged Exp. Sensor Array with a note attached 1600 | -10/Mines | Met a Derelict who couldn't figure out how to use a Trap Extractor 2024 | -10/Mines | Deemed a non-threat by the Exiles lab entrance 2025 | -10/Mines | Discovered new exit (range 5) 2032 | -10/Mines | Entered Exiles 2071 | -10/Exiles | Met 8R-AWN 2098 | -10/Exiles | Met EX-HEX 2144 | -10/Exiles | Met EX-BIN 2164 | -10/Exiles | Aligned with FarCom system 2165 | -10/Exiles | Given EX-Vault access code 2204 | -10/Exiles | Opened EX-Vault 2212 | -10/Exiles | Found Skeleton Box 2243 | -10/Exiles | Warned to stay clear of 0b10 Research branches 2293 | -10/Exiles | Met EX-DEC 2353 | -10/Exiles | Discovered new exit (range 10) 2366 | -10/Exiles | Left Exiles lab with Skeleton Box 2366 | -10/Exiles | Entered Mines 2577 | -9/Mines | Excavation squad dispatched 2577 | -9/Mines | A large section of the Mines collapsed 2819 | -9/Mines | Core integrity fell below 50% 2827 | -9/Mines | Excavation squad dispatched 2989 | -9/Mines | Discovered new exit (range 8) 3010 | -9/Mines | Entered Materials 3010 | -8/Materials | Evolved 4 slots: Propulsion x1, Utility x2, Weapon x1 3011 | -8/Materials | Identified exit to Factory 3014 | -8/Materials | Loaded intel: 11 terminal locations 3195 | -8/Materials | Repaired Lgt. Treads 3222 | -8/Materials | Repaired Lgt. Treads 3319 | -8/Materials | Build established: Skirmisher 3729 | -8/Materials | Central database locked down 3785 | -8/Materials | Self-destructed Last Messages --------------- is lost. When necessary, hunter squad leaders also launch an autonomous drone from their built-in drone bay to help find escaped targets. The H-55 cannot be remotely detected by low-level sensor arrays. 03729_ ALERT: Central database lockdown, local access denied. 03729_ Connecting with Terminal... 03744_ ALERT: Hostiles spotted, dispatching reinforcements to Terminal M002. 03753_ System corrupted: Matter fused (-8). 03769_ Acquired 12 matter. 03776_ System corrupted: Substantial component data lost. 03776_ W-25 Informer sends out distress signal. 03780_ A-02 Transporter destroyed. 03782_ R-06 Scavenger collects Prototype Flight Unit. 03785_ R-06 Scavenger collects Prototype Hover Unit. Map ----- +----------------------------------------------------+ | ?????????????????????????????????????????????????? | | ?????????????????????????????????????????????????? | | ?????????????????????????????????????????????????? | | ?????????????????##+### #??# """"" # ???????? | | ????????????????? #### """"" # ""???????? | | ????????????????? + # ""????"T"? | | ????????????????? #### # "T???????? | | ?????????????????# #####+##### # ""???????? | | ?????????????????# # """ # # ""???????? | | ?????????????????# # """ "T" # # ???????? | | ?????????+???+???# # """ ###########/#???????? | | ?????????????????# # """ #?????????# #???????? | | ????????????????? + #?????????# #???????? | | ??????????"T"??h?### #?????????# #???????? | | ??????????????#????# #?????????# ######### | | ?????????????## #### #???####### ## | | ?????????????? ################ # """ | | ???????????????? #?# # ^^ ^^^# """ | | ???????????????T? #?# + # """ | | ????????????????? #?# # # | | ????????????????? ## #?######### # | | ?????????????????### ######????# + "T" | | ????????????????? # #????# # """ | | ????????????????? + #????# + | | ????????????????? # #????# ##+########## | | ?????????Y??????? ######@ #???## ## """ | | ???????#############????#% =##### = # """"" | | ???????# !/ #? ###### =% # """"" | | ???????# !/ ## r == r + """"" | | ???????# /= ## ###### ! # """ ? | | ???????# #?# ##??####+###### # | | ######## #?# #???# !% = ######## | | + ### ###?# #??????############ | | ##########+#### #?# ################### | | ####????# !*### ###[ """ # # # | | #????# ! %+%=""""" # # # | | "" #????# [!### ###* """"" # # # | | T" #????## ##?# #?# """"" # """ # # | | "" #?????# #??###+#####! """ # """ # # | | #?????# #??# ## # "S + # | | ######### #?# """ ########### """ # # | | #?# """ #?????????# "" # # | | ##### ??# """ #?????????# # # | | #???####??# ###############+########+#### | | #?????????# ! + # | | +## #?????????######## ####### # | | # ################## # | [# # | | # + ################ | | ########################### ]! #??????????????? | | !#?????????????????????????# ]! #??????????????? | +----------------------------------------------------+ Best States ------------- Heat Dissipation 51 Energy Generation 14 Energy Capacity 250 Matter Stores 300 Matter Capacity 300 Sight Range 16 Terrain Scan Density 10 Armor Coverage 225 Evasion (%) 50 Recoil Reduction 3 Trap Extractor Capacity 6 Item Schematics ----------------- None Robot Schematics ------------------ None Fabricated ------------ Nothing Alien Tech Used ----------------- None Achievements -------------- None Challenges ------------ None Game ------ Seed RiotJunkMapper Manual? 0 Play Time 00:25:41 Cumulative 65.3 hours Start 2024.11.19 @ 08:24:22 End 2024.11.25 @ 22:41:49 Sessions 3 Manual Loads 0 Difficulty Rogue Special Mode None Game No. 56 Rogue 56 Adventurer 0 Explorer 0 Win Type - Total 2 Types 2/0/0/0/0/0/0/0/0 Lore% 24 Gallery% 42 Achievement% 43 Wizard Run 0 Options --------- Layout 1 ASCII 0 Keyboard 0 Movement Arrows Keybinds 0 Fullscreen 1 Font 24/Smallcaps Map View 50x35 Zoom Use 0% Tactical HUD 1 Map Filters NONE Filters NONE Steam 1 RUN: 5b6c9350-3a48-4b17-ad18-2188591db0d8